[Event "ChessKid Cup Div-III 2023"]
[Site "Online"]
[Date "2023.05.22"]
[Round "2.2"]
[White "Antipov, Mikhail Al."]
[Black "Gledura, Benjamin"]
[Result "1-0"]
[ECO "C48"]
[WhiteElo "2588"]
[BlackElo "2644"]
[Annotator "TA"]
[PlyCount "107"]
[EventDate "2023.05.21"]
[EventType "k.o."]
[EventCountry "NET"]
[SourceTitle "playchess.com"]
[Source "ChessBase"]
[SourceQuality "1"]
[TimeControl "900+3"]

{[%evp 10,107,-33,-39,-44,-53,-50,-49,-53,-45,-51,-66,-72,-50,-44,-41,-43,-77,-7,-13,10,-103,49,56,73,67,85,84,115,107,131,128,130,134,204,200,314,310,321,309,306,303,309,190,206,210,187,164,143,135,131,127,123,127,158,105,112,106,408,263,300,289,283,283,445,443,399,360,1008,970,885,879,872,834,1064,1013,2186,1961,3278,2046,29941,12817,12103,10606,29969,29970,29969,29965,29967,29965,29979,29980,29980,29981,29981,29982,29982,29983,29983,29984]} 1. e4 {[%emt 0:00:03]} e5 {[%emt 0:00:05]} 2. Nf3 {[%emt 0:00:02]} Nf6 {[%emt 0:00:03]} 3. Nc3 {[%emt 0:00:00]} Nc6 {[%emt 0:00:01]} 4. Bb5 {[%emt 0:00:00]} Nd4 {[%emt 0:00:02]} 5. Nxe5 {[%emt 0:00:01]} Qe7 {[%emt 0:00:23]} 6. f4 {[%emt 0:00:03]} Nxb5 {[%emt 0:00:02] C48: Four Knights: 4 Bb5, replies other than 4...Bb4.} 7. Nxb5 {[%emt 0:00:01]} d6 {[%emt 0:00:00]} (7... Nxe4 8. Nxc7+ Kd8 9. Nxa8 $14) 8. Nf3 {[%emt 0:00:02]} Qxe4+ {[%emt 0:00:06] Black is slightly better.} (8... Nxe4 9. O-O $14) 9. Kf2 {[%emt 0:00:01] Threatens to win with Re1.} Ng4+ {[%emt 0:00:02]} (9... Qxf4 $2 10. Nxc7+ Kd8 11. d3 $18) 10. Kg3 {[%emt 0:00:16] Black must now prevent Re1.} Qg6 $1 {[%emt 0:01:18]} (10... Kd8 11. h3 Nf6 12. d3 Qg6+ 13. Kf2 $11) 11. Nh4 {[%emt 0:00:03]} (11. Nxc7+ $2 Kd8 12. f5 (12. Nxa8 $2 Ne3+ {[%mdl 64] Discovered Attack, Double Attack} 13. Kf2 Nxd1+ 14. Rxd1 Qxc2 $19) (12. Nh4 $2 Qf6 $19) 12... Qxf5 $17) 11... Qh5 {[%emt 0:00:58]} (11... Qf6 {feels hotter.} 12. h3 g5 13. Qe2+ Ne5) 12. h3 {[%emt 0:00:14]} ({Don't take} 12. Nxc7+ $6 Kd8 13. h3 (13. Nxa8 $2 {is the wrong capture.} g5 $19) 13... g5 14. hxg4 (14. Nxa8 {leads to mate.} Qxh4+ 15. Kf3 Qf2+ 16. Ke4 Bf5+ {[%mdl 64] Decoy} 17. Kxf5 Qxf4#) 14... gxf4+ 15. Kf2 Bxg4 $14) 12... Qxb5 {[%emt 0:00:04]} 13. hxg4 {[%emt 0:00:00] [#]} Be6 $146 {[%emt 0:02:02]} ({Better is} 13... g5 $17 14. fxg5 Qe5+ 15. Kf2 Qxg5) ({Predecessor:} 13... h5 14. g5 Bg4 15. Qe1+ Kd7 16. d4 Re8 17. Be3 Qxb2 18. Qf2 d5 19. Rhe1 Bb4 {0-1 Radovanovic,D (2311)-Papayan,O (2253) Titled Tuesday intern op 06th Dec Late blitz 2022 (10)}) 14. a4 $11 {[%emt 0:00:49]} Qd7 {[%emt 0:02:02]} 15. Qf3 {[%emt 0:01:42] [#]} (15. d4 $11 {remains equal.} Qc6 16. f5) 15... g5 $2 {[%emt 0:00:33]} 16. fxg5 $14 {[%emt 0:00:02]} O-O-O {[%emt 0:00:04][%cal Of7f6]} 17. d4 {[%emt 0:00:02] Prevents f6. Hoping for d5.} c6 {[%emt 0:00:17]} 18. Nf5 {[%emt 0:05:31]} Re8 {[%emt 0:00:22][%cal Of7f6] Black is weak on the dark squares} 19. Bd2 {[%emt 0:00:30]} Bd5 {[%emt 0:00:26]} 20. Qf4 {[%emt 0:00:03]} Re4 {[%emt 0:00:58] Inhibits Rae1.} 21. Qf2 {[%emt 0:00:02]} Be7 {[%emt 0:01:33]} (21... Be6 $16 {was necessary.}) 22. Rae1 $18 {[%emt 0:00:05][%cal Oc2c4] aiming for c4! Active counter play!} Bd8 {[%emt 0:00:06] [#]} (22... Rg8 {keeps fighting.}) 23. c4 $1 {[%emt 0:04:23][%mdl 512]} Rxe1 {[%emt 0:00:40]} 24. Rxe1 {[%emt 0:00:00]} Be6 {[%emt 0:00:19] [#]} (24... Bxc4 $2 25. Bf4 Kb8 26. Nxd6 $18) 25. d5 $1 {[%emt 0:00:01][%mdl 576] Discovered Attack} Bxf5 {[%emt 0:00:01]} 26. Qxf5 {[%emt 0:00:16]} Qxf5 {[%emt 0:00:19]} 27. gxf5 {[%emt 0:00:00][%mdl 4096] Endgame KRB-KRB} Rg8 {[%emt 0:00:01]} 28. Kh4 {[%emt 0:00:38]} h6 {[%emt 0:00:02]} 29. f6 {[%emt 0:00:01]} hxg5+ {[%emt 0:00:07]} 30. Bxg5 {[%emt 0:00:01]} cxd5 {[%emt 0:00:10]} 31. cxd5 {[%emt 0:00:01]} Kd7 {[%emt 0:00:00]} 32. Re3 {[%emt 0:00:52]} (32. g4 $142) 32... Rg6 {[%emt 0:00:06]} 33. Rf3 {[%emt 0:00:01] Kg4 is the strong threat.} Bb6 $2 {[%emt 0:00:07][%mdl 8192] Black cannot hold the game after this.} (33... Rg8 $16) 34. g4 {[%emt 0:00:08]} Bd4 {[%emt 0:00:11]} 35. b3 {[%emt 0:00:03]} Be5 {[%emt 0:00:12]} 36. Kh5 {[%emt 0:00:01]} a6 {[%emt 0:00:55]} (36... Bb2 $142 37. Bh4 Be5) 37. Bh4 {[%emt 0:00:06]} Rg8 {[%emt 0:00:07]} 38. g5 {[%emt 0:00:01]} Rc8 $2 {[%emt 0:00:01]} (38... Bb2 39. Re3 Rh8+ 40. Kg4 Re8 41. Rxe8 Kxe8) 39. g6 {[%emt 0:00:35]} fxg6+ {[%emt 0:00:55]} 40. Kxg6 {[%emt 0:00:01] And now f7 would win.} Bxf6 {[%emt 0:00:01]} 41. Bxf6 {[%emt 0:00:01] KRB-KR} Rc5 {[%emt 0:00:00]} 42. Rd3 {[%emt 0:00:02]} b5 {[%emt 0:00:01]} 43. axb5 {[%emt 0:00:04]} Rxb5 {[%emt 0:00:01]} 44. Kf5 {[%emt 0:00:02] Strongly threatening Ke4.} a5 {[%emt 0:00:01]} 45. Ke4 {[%emt 0:00:01] Bd4 would kill now.} Rb4+ {[%emt 0:00:02]} 46. Bd4 {[%emt 0:00:01]} a4 {[%emt 0:00:03]} 47. bxa4 {[%emt 0:00:01] White mates.} Rxa4 {[%emt 0:00:00]} 48. Rb3 {[%emt 0:00:00]} Ra2 {[%emt 0:00:02]} 49. Rb7+ {[%emt 0:00:02]} Ke8 {[%emt 0:00:01]} 50. Kf5 {[%emt 0:00:04]} Re2 {[%emt 0:00:03]} 51. Bf6 {[%emt 0:00:05]} Re1 {[%emt 0:00:02] [#]} 52. Re7+ $1 {[%emt 0:00:12][%mdl 512]} Rxe7 {[%emt 0:00:01]} 53. Bxe7 {[%emt 0:00:00]} Kxe7 {[%emt 0:00:00] [#]} 54. Kg6 $1 {[%emt 0:00:00] Weighted Error Value: White=0.17 (very precise) /Black=0.67} 1-0

[Event "ChessKid Cup Div-III 2023"]
[Site "Online"]
[Date "2023.05.22"]
[Round "2.2"]
[White "Lazavik, Denis"]
[Black "Bok, Benjamin"]
[Result "1-0"]
[ECO "E15"]
[WhiteElo "2544"]
[BlackElo "2607"]
[Annotator "TA"]
[PlyCount "175"]
[EventDate "2023.05.21"]
[EventType "k.o."]
[EventCountry "NET"]
[SourceTitle "playchess.com"]
[Source "ChessBase"]
[SourceQuality "1"]
[TimeControl "900+3"]

{[%evp 16,175,4,9,14,14,4,8,11,6,8,6,0,1,1,1,1,2,18,22,0,-12,11,18,13,-29,-20,-195,85,40,218,218,201,202,194,194,207,208,213,39,96,96,96,101,101,84,91,93,85,93,111,93,91,72,119,119,129,119,155,154,274,164,460,460,460,391,614,606,551,551,614,614,614,591,591,591,29969,29968,29954,1346,1166,1135,767,614,608,614,614,606,606,606,600,592,592,592,591,591,591,591,428,435,29951,29945,29953,29955,29954,29954,29952,29953,29999,29958,29990,29965,29964,29950,8719,591,591,364,29982,584,29957,29959,29957,29957,29972,29973,29972,29956,29971,29970,29971,29972,29980,29974,29975,29977,29980,29979,29986,29987,29987,29988,29990,29985,29985,29986,29986,29980,29980,29981,29981,29982,29989,29990,29997,29996,29996,29997,29997,29998,29998,29999]} 1. d4 {[%emt 0:00:04]} Nf6 {[%emt 0:00:05]} 2. c4 {[%emt 0:00:01]} e6 {[%emt 0:00:01]} 3. Nf3 {[%emt 0:00:04]} b6 {[%emt 0:00:03]} 4. g3 {[%emt 0:00:02]} Ba6 {[%emt 0:00:02]} 5. b3 {[%emt 0:00:02]} Bb4+ {[%emt 0:00:01]} 6. Bd2 {[%emt 0:00:02]} Be7 {[%emt 0:00:01]} 7. Bg2 {[%emt 0:00:01]} O-O {[%emt 0:00:01] 7...0-0 is setting a new trend.} 8. O-O {[%emt 0:00:02]} d5 {[%emt 0:00:02]} 9. Ne5 {[%emt 0:00:01]} c5 {[%emt 0:00:01] E15: Queen's Indian: 4 g3 sidelines, 4 g3 Ba6 and 4 g3 Bb7 early deviations.} 10. Bf4 {[%emt 0:00:16] [#]} cxd4 $146 {[%emt 0:00:15]} ({Predecessor:} 10... Bb7 11. dxc5 bxc5 12. Nc3 Qa5 13. Qd2 Rd8 14. cxd5 exd5 15. Nxd5 Qxd2 16. Nxe7+ Kf8 17. Bxd2 Bxg2 18. Kxg2 Rxd2 {½-½ Ye,X (1956)-Zhu,H (2191) CHN-chT Liaocheng 2021 (1.4)}) 11. Qxd4 {[%emt 0:00:02]} Nfd7 {[%emt 0:00:52] The position is equal.} 12. cxd5 {[%emt 0:00:39][%cal Oe5f7]} Nxe5 {[%emt 0:00:06]} 13. Qxe5 {[%emt 0:00:25]} Bf6 {[%emt 0:00:59]} 14. Qe3 {[%emt 0:00:04]} exd5 {[%emt 0:00:06]} (14... Bxa1 15. dxe6 $16) 15. Nc3 {[%emt 0:00:04]} Nc6 $132 {[%emt 0:00:48][%cal Bb8c6,Bc6e5,Be5g6][%mdl 2080] Black is fighting back} 16. Rad1 {[%emt 0:00:31]} (16. Bxd5 Re8 17. Qf3 Nd4 $17) 16... d4 {[%emt 0:01:22]} 17. Qf3 {[%emt 0:00:49]} (17. Bxc6 $2 dxe3 18. Rxd8 Raxd8 $19) 17... Rc8 {[%emt 0:00:05][%cal Od4d3] Strongly threatening ...d3!} 18. Ne4 {[%emt 0:02:25]} (18. Nd5 $5 {[%cal Rg2h3]}) 18... Ne5 {[%emt 0:02:45]} 19. Qh5 {[%emt 0:01:51]} Re8 {[%emt 0:01:22]} 20. Rd2 {[%emt 0:00:26]} Ng6 {[%emt 0:01:25]} 21. Be3 $2 {[%emt 0:00:45]} (21. Bg5 $11 {and White stays safe.}) 21... Be5 $2 {[%emt 0:03:50]} (21... Re5 22. Qf3 Re8 23. Rfd1 $16 (23. Nxf6+ Qxf6 24. Bxd4 Bxe2 $16)) (21... Rxe4 $1 $19 22. Bxe4 Qe7 23. Bxd4 (23. Bxg6 $2 hxg6 24. Qf3 Bb7 $19) 23... Qxe4 24. Bxf6 gxf6) 22. Rfd1 {[%emt 0:01:41][%cal Re3d4] White is more active.} (22. Ng5 {is interesting.} h6 23. Nxf7 Kxf7 24. Be4) 22... dxe3 $2 {[%emt 0:01:15]} (22... d3 $1 $14) 23. Rxd8 $18 {[%emt 0:00:03]} exf2+ {[%emt 0:00:00]} 24. Kxf2 {[%emt 0:00:07]} (24. Nxf2 $6 Rcxd8 25. Rxd8 Rxd8 $16) 24... Rexd8 {[%emt 0:00:01]} 25. Rxd8+ {[%emt 0:00:02]} Rxd8 {[%emt 0:00:00]} 26. Ng5 $1 {[%emt 0:00:40]} Rd2 {[%emt 0:00:44]} 27. Qxh7+ {[%emt 0:01:31]} (27. Nxh7 $2 Bd4+ 28. Ke1 Rxe2+ 29. Qxe2 Bxe2 30. Kxe2 Kxh7 $19) (27. Bf3 $1 $18 {and the rest is easy.}) 27... Kf8 $16 {[%emt 0:00:01]} 28. Bf3 {[%emt 0:00:02][%cal Og5e6] Black must now prevent Ne6+!} Bd4+ {[%emt 0:00:00] [#]} 29. Kg2 $1 {[%emt 0:00:05] aiming for Qh5.} Bxe2 {[%emt 0:00:02]} 30. Bxe2 {[%emt 0:00:02]} Rxe2+ {[%emt 0:00:00] [#]} 31. Kf1 $1 {[%emt 0:00:04]} Rf2+ {[%emt 0:00:04]} 32. Ke1 {[%emt 0:00:03] And now Qh3 would win.} Rxa2 {[%emt 0:00:15] [#]} 33. Ne6+ $1 {[%emt 0:00:41][%mdl 576] Deflection} fxe6 {[%emt 0:00:03]} 34. Qxg6 {[%emt 0:00:00]} Rxh2 {[%emt 0:00:04]} ({Better is} 34... Bf6) 35. Qxe6 {[%emt 0:00:06][%mdl 4096] Endgame KQ-KRB} Bf6 {[%emt 0:00:02]} 36. Qc8+ {[%emt 0:00:09]} Ke7 {[%emt 0:00:04]} 37. Qc7+ {[%emt 0:00:01]} Kf8 {[%emt 0:00:04]} (37... Ke6 $16) 38. Qxa7 {[%emt 0:00:02]} (38. Qb8+ $142 Kf7 39. Qxa7+ Ke6 40. Qxb6+ Kd5 41. Qe3) 38... Rb2 $2 {[%emt 0:00:02]} (38... Rh6 {is a better defense.} 39. Qa8+ (39. Qxb6 {leads to mate.} Bc3+ {[%mdl 64] Discovered Attack} 40. Kd1 Rxb6 41. Ke2 Rxb3 42. g4 Bb4 43. g5 Kf7 44. Kd1 Rb2 45. Kc1 Bc3 46. g6+ Kxg6 47. Kd1 Kf5 48. Kc1 g5 49. Kd1 Ke4 50. Kc1 Kd3 51. Kd1 Rb1#) 39... Ke7 40. Qa7+ Ke8 41. Qb8+ (41. Qxb6 $2 Bc3+ {[%mdl 64] Discovered Attack} 42. Kf2 Rxb6 43. g4 Rxb3 44. Ke3 Bf6+ 45. Kf4 g5+ 46. Ke4 Rb4+ 47. Kf3 Be5 48. Kf2 Ke7 49. Kf3 Kd6 50. Ke3 Kd5 51. Kf3 Rb3+ 52. Kf2 Ke4 53. Ke2 Rb2+ 54. Kd1 Bc3 55. Kc1 Kd3 56. Kd1 Rb1#) 41... Kf7) 39. Qxb6 $18 {[%emt 0:00:04]} Kf7 {[%emt 0:00:01]} 40. Kf1 {[%emt 0:00:04]} Kg6 {[%emt 0:00:04]} (40... Be5 $142 41. Qc6 Rd2) 41. b4 {[%emt 0:00:02]} Kf5 {[%emt 0:00:01]} 42. b5 {[%emt 0:00:41]} Kg4 {[%emt 0:00:01]} 43. Qc5 {[%emt 0:00:41] b6 is the strong threat.} Kf3 {[%emt 0:00:07]} 44. Qc6+ {[%emt 0:00:04]} Kxg3 {[%emt 0:00:02]} 45. b6 {[%emt 0:00:01] b7 would kill now.} Kf4 {[%emt 0:00:05]} 46. b7 {[%emt 0:01:16]} Rb1+ {[%emt 0:00:01]} 47. Ke2 {[%emt 0:00:01] Threatening mate with Qf3+.} Be5 {[%emt 0:00:00]} 48. Qc4+ {[%emt 0:00:05]} Kg5 {[%emt 0:00:03]} 49. Qe6 {[%emt 0:00:14]} Kf4 {[%emt 0:00:08]} 50. Qf7+ {[%emt 0:00:01]} Kg5 {[%emt 0:00:03]} 51. Kd3 {[%emt 0:00:03] Hoping for Ke4.} g6 {[%emt 0:00:03]} 52. Ke4 {[%emt 0:00:01]} Bg3 {[%emt 0:00:03]} 53. Qe7+ {[%emt 0:00:03]} Kh5 {[%emt 0:00:03] ( -> ...Re1+)} 54. Kf3 {[%emt 0:00:03]} Rb3+ {[%emt 0:00:01]} 55. Kg2 {[%emt 0:00:00] White wants to mate with Qe6.} Bf4 {[%emt 0:00:02]} 56. Qf7 {[%emt 0:00:08][%csl LRb3,LRf4]} Rb2+ {[%emt 0:00:03]} 57. Kf3 {[%emt 0:00:01]} Bh2 {[%emt 0:00:03]} (57... Bd6 $18 58. Qd5+ Kh6 59. Qxd6 Rxb7) 58. Qh7+ {[%emt 0:00:03]} Kg5 {[%emt 0:00:01] [#]} 59. Qxh2 $3 {[%emt 0:00:01][%mdl 576] Remove Defender, Promotion} Rxh2 {[%emt 0:00:00]} 60. b8=Q {[%emt 0:00:00] KQ-KR} (60. b8=B Rh3+ 61. Ke4 Kh5 $19) 60... Rh3+ {[%emt 0:00:06]} 61. Ke4 {[%emt 0:00:01]} Rh5 {[%emt 0:00:05]} 62. Qf8 {[%emt 0:00:06][%csl Ge4][%cal Rf8f4]} Rh1 {[%emt 0:00:06]} 63. Qd8+ {[%emt 0:00:02]} Kg4 {[%emt 0:00:02]} 64. Qf6 {[%emt 0:00:09]} Re1+ {[%emt 0:00:02]} 65. Kd3 {[%emt 0:00:01]} g5 {[%emt 0:00:01]} 66. Kd2 {[%emt 0:00:01]} Rh1 $2 {[%emt 0:00:03]} (66... Re4 $18 67. Kd3 Rf4) 67. Ke2 {[%emt 0:00:04]} (67. Qd4+ $142 Kg3 68. Qe3+ Kh2 69. Qf2+ Kh3 70. Qf3+ Kh2 71. Qh5+ Kg2 72. Qxg5+ Kh3 73. Qh5+ Kg2 74. Qd5+ Kh2 75. Ke2) 67... Rh2+ {[%emt 0:00:02]} 68. Ke3 {[%emt 0:00:00] White mates.} Rh3+ {[%emt 0:00:02]} 69. Ke4 {[%emt 0:00:01]} Rg3 {[%emt 0:00:03]} 70. Qf5+ {[%emt 0:00:05]} Kh4 {[%emt 0:00:02]} 71. Qe6 {[%emt 0:00:04]} Rg4+ {[%emt 0:00:02]} 72. Kf5 {[%emt 0:00:13]} Rf4+ {[%emt 0:00:02]} 73. Kg6 {[%emt 0:00:00]} g4 {[%emt 0:00:06]} 74. Qe7+ {[%emt 0:00:01]} Kh3 {[%emt 0:00:01]} 75. Kg5 {[%emt 0:00:01]} Rf3 {[%emt 0:00:09]} 76. Qe4 {[%emt 0:00:05]} Kh2 {[%emt 0:00:06]} 77. Kxg4 {[%emt 0:00:02]} ({Inferior is} 77. Qxg4 Rg3 $11) 77... Rg3+ {[%emt 0:00:00]} 78. Kf4 {[%emt 0:00:01]} Rg2 {[%emt 0:00:03]} 79. Qh7+ {[%emt 0:00:08]} Kg1 {[%emt 0:00:02]} 80. Qa7+ {[%emt 0:00:07]} Kh2 {[%emt 0:00:03]} 81. Kf3 {[%emt 0:00:00]} Rg3+ {[%emt 0:00:01]} 82. Kf2 {[%emt 0:00:01]} Rg2+ {[%emt 0:00:03]} 83. Kf1 {[%emt 0:00:00]} Rg4 {[%emt 0:00:05]} 84. Qe3 {[%emt 0:00:07]} Rg3 {[%emt 0:00:07]} 85. Qh6+ {[%emt 0:00:03]} Rh3 {[%emt 0:00:01]} 86. Qf4+ {[%emt 0:00:00]} Rg3 {[%emt 0:00:02]} 87. Kf2 {[%emt 0:00:02]} Kh1 {[%emt 0:00:01]} 88. Kxg3 {[%emt 0:00:01] An entertaining game by Lazavik.   Weighted Error Value: White=0.19 (very precise) /Black=0.41} 1-0

[Event "ChessKid Cup Div-III 2023"]
[Site "Online"]
[Date "2023.05.22"]
[Round "2.3"]
[White "Harikrishna, Pentala"]
[Black "Yu, Yangyi"]
[Result "1-0"]
[ECO "D33"]
[WhiteElo "2704"]
[BlackElo "2729"]
[Annotator "TA"]
[PlyCount "49"]
[EventDate "2023.05.21"]
[EventType "k.o."]
[EventCountry "NET"]
[SourceTitle "playchess.com"]
[Source "ChessBase"]
[SourceQuality "1"]
[TimeControl "900+3"]

{[%evp 16,49,22,37,22,21,38,29,31,4,3,8,26,27,27,27,26,24,16,18,28,25,20,25,28,25,50,37,45,32,83,96,220,118,693,677]} 1. c4 {[%emt 0:00:07]} Nf6 {[%emt 0:03:40]} 2. Nc3 {[%emt 0:00:05]} c5 {[%emt 0:00:08]} 3. Nf3 {[%emt 0:00:04]} e6 {[%emt 0:00:04][%cal Be7e6,Be6d5,Bd5d4][%mdl 32]} 4. g3 {[%emt 0:00:11]} Nc6 {[%emt 0:00:07]} 5. Bg2 {[%emt 0:00:06]} d5 {[%emt 0:00:04]} 6. cxd5 {[%emt 0:00:07]} exd5 {[%emt 0:00:03]} 7. d4 {[%emt 0:00:09]} cxd4 {[%emt 0:00:03] is more profitable than 7...Be7 at the moment.} 8. Nxd4 {[%emt 0:00:04]} Bc5 {[%emt 0:00:04]} 9. Nb3 {[%emt 0:00:30][%csl LRc5,LRd5]} Bb6 {[%emt 0:00:04] D33: Tarrasch Defence: 6 g3 sidelines.} 10. O-O {[%emt 0:00:04][%cal Oc1g5]} ({Much weaker is} 10. Bxd5 Nb4 11. Bf3 Qxd1+ 12. Kxd1 Bf5 $15) 10... d4 {[%emt 0:00:06]} 11. Na4 {[%emt 0:00:04]} O-O {[%emt 0:00:03] White has an edge.} 12. Nxb6 {[%emt 0:00:12]} axb6 {[%emt 0:00:04]} 13. e3 {[%emt 0:00:13] [#]} Bg4 $146 {[%emt 0:00:27]} ({Predecessor:} 13... d3 14. Bd2 Be6 15. Bc3 Bc4 16. Nd2 Bxa2 17. Ne4 Nd5 18. Qxd3 Nxc3 19. Qxc3 Be6 20. Rxa8 Qxa8 {1-0 Harikrishna,P (2715)-Srihari,L (2436) Speed Chess Q2 blitz 2022 (6)}) 14. f3 {[%emt 0:00:15]} Be6 {[%emt 0:00:05]} 15. Nxd4 {[%emt 0:00:22]} Nxd4 {[%emt 0:01:03]} 16. Qxd4 {[%emt 0:00:50]} Qxd4 {[%emt 0:00:13]} 17. exd4 {[%emt 0:00:05]} Bxa2 {[%emt 0:00:18]} 18. Bg5 {[%emt 0:00:09]} Nd5 {[%emt 0:00:14]} 19. Rfc1 {[%emt 0:00:49]} Bb3 {[%emt 0:00:23]} 20. Bd2 {[%emt 0:00:17]} b5 {[%emt 0:01:08]} 21. f4 {[%emt 0:01:03] Black must now prevent Rxa8.} Ra4 {[%emt 0:00:28]} 22. Ra3 {[%emt 0:00:55]} Rxa3 {[%emt 0:01:22]} (22... Rxd4 $14 23. Rxb3 Rxd2) 23. bxa3 $16 {[%emt 0:00:06]} Bc4 {[%emt 0:00:27] [#]} (23... Rd8 $16) 24. a4 {[%emt 0:00:28]} (24. Rxc4 $1 $18 {[%mdl 512]} bxc4 25. Bxd5) 24... Nc7 $2 {[%emt 0:03:21][%mdl 8192]} (24... b6 $16 25. axb5 Bb3) 25. axb5 {[%emt 0:00:13] Weighted Error Value: White=0.15 (very precise) /Black=0.60} 1-0

[Event "ChessKid Cup Div-III 2023"]
[Site "Online"]
[Date "2023.05.22"]
[Round "2.3"]
[White "Keymer, Vincent"]
[Black "Lysyj, Igor"]
[Result "0-1"]
[ECO "D42"]
[WhiteElo "2700"]
[BlackElo "2606"]
[Annotator "TA"]
[PlyCount "76"]
[EventDate "2023.05.21"]
[EventType "k.o."]
[EventCountry "NET"]
[SourceTitle "playchess.com"]
[Source "ChessBase"]
[SourceQuality "1"]
[TimeControl "900+3"]

{[%evp 17,76,0,0,0,3,0,0,0,0,-12,0,0,14,-50,-5,-9,0,-5,0,0,0,-18,0,0,0,-233,-234,-404,-390,-401,-390,-431,-435,-442,-435,-445,-443,-445,-430,-414,0,-448,-430,-488,-481,-448,-270,-913,0,-912,-879,-893,-893,-898,-895,-4132,-1163,-1002,-841,-1223,-1223]} 1. c4 {[%emt 0:00:07]} e6 {[%emt 0:04:10]} 2. Nc3 {[%emt 0:00:07]} c5 {[%emt 0:00:05]} 3. e3 {[%emt 0:00:29]} Nf6 {[%emt 0:00:06]} 4. Nf3 {[%emt 0:00:05]} Nc6 {[%emt 0:00:05]} 5. d4 {[%emt 0:00:09]} d5 {[%emt 0:00:05]} 6. cxd5 {[%emt 0:00:20]} Nxd5 {[%emt 0:00:05]} 7. Bd3 {[%emt 0:00:05]} Be7 {[%emt 0:00:04]} 8. O-O {[%emt 0:00:05]} O-O {[%emt 0:00:05]} 9. Re1 {[%emt 0:00:58]} b6 {[%emt 0:00:07]} 10. Nxd5 {[%emt 0:02:05] D42: Queen's Gambit Declined: Semi-Tarrasch: 5 cxd5 Nxd5 6 e3 Nc6 7 Bd3 .} exd5 {[%emt 0:00:06]} 11. dxc5 {[%emt 0:00:13]} bxc5 {[%emt 0:00:05]} 12. Bd2 {[%emt 0:00:13] [#] The position is equal.} Be6 $5 $146 {[%emt 0:00:31][%mdl 8] New and interesting.} ({Predecessor:} 12... Qb6 13. Bc3 Rd8 14. h3 Be6 15. Qa4 a5 16. Qf4 d4 17. exd4 cxd4 18. Bd2 Nb4 19. Bxb4 axb4 {½-½ Radjabov,T (2765)-Nepomniachtchi,I (2784) Airthings Masters KO rapid 2020 (1.12)}) 13. Qc2 {[%emt 0:00:24]} h6 {[%emt 0:00:06]} 14. Rad1 {[%emt 0:00:25]} Qb6 {[%emt 0:00:13]} 15. e4 {[%emt 0:00:40]} (15. Bh7+ $11 Kh8 16. Bf5) 15... dxe4 {[%emt 0:00:31]} 16. Bxe4 {[%emt 0:00:18]} Rac8 {[%emt 0:00:05]} (16... Rad8 {simplifies} 17. Qb1 Bf6 18. Bc3 Rxd1 19. Rxd1 Bxc3 20. bxc3 Qxb1 21. Rxb1 Rb8) 17. Qc1 {[%emt 0:01:01][%cal Od2h6]} Bf6 {[%emt 0:00:59]} (17... Rfd8 {simplifies} 18. Be3 Nd4 19. Qb1 Nxf3+ 20. Bxf3 Bf6) 18. Bxh6 {[%emt 0:00:57]} Qxb2 {[%emt 0:00:08]} 19. Qf4 {[%emt 0:00:04]} Qb8 {[%emt 0:00:15]} (19... Nd4 $5 {[%cal Rd4e2]} 20. Rd2 Qc3 $15) 20. Qe3 {[%emt 0:02:27]} Nd4 {[%emt 0:00:13]} 21. Ng5 $2 {[%emt 0:00:23] Black keeps a firm grip on the game.} Bf5 $19 {[%emt 0:00:07]} 22. Bxf5 $2 {[%emt 0:03:40]} (22. Rb1 {was necessary.} Qc7 23. Bxg7 Kxg7 24. Bxf5 Nxf5 25. Qf3 Bxg5 26. Qxf5) 22... Nxf5 {[%emt 0:00:13]} 23. Qd3 {[%emt 0:00:04]} gxh6 {[%emt 0:00:31]} (23... Nxh6 $2 24. Qh7#) 24. Nh7 {[%emt 0:00:04]} Kxh7 {[%emt 0:00:39][%cal Bg8h7,Bh7g7,Bg7h8][%mdl 32]} 25. Qxf5+ {[%emt 0:00:04]} Kg7 {[%emt 0:00:04]} 26. Re3 {[%emt 0:00:10]} Qb2 {[%emt 0:01:14]} 27. Rb1 {[%emt 0:00:30]} Qd4 {[%emt 0:00:16]} (27... Qxa2 28. Rg3+ Bg5 29. Rxg5+ hxg5 30. Qxg5+ Kh7 31. Qh5+ Kg8 32. Qg5+ Kh8 33. Qh4+ Kg8 34. Qg5+ Kh7 35. Qh5+ Kg8 36. Qg5+ $11) 28. Re4 {[%emt 0:00:03]} Qc3 {[%emt 0:00:23]} ({Better is} 28... Qd6 $19 29. g3 Rce8) 29. h4 $2 {[%emt 0:00:05][%mdl 8192]} (29. Re3 $1 $11) 29... Kh8 {[%emt 0:00:19]} 30. Rb3 {[%emt 0:00:03]} Qa1+ {[%emt 0:00:13]} 31. Kh2 {[%emt 0:00:04][%cal Ob3b1]} Rce8 {[%emt 0:00:12] [#] aiming for ...Rxe4.} (31... Qxa2 {is a self mate.} 32. Qxf6+ Kh7 33. Rg4 Rg8 34. Qxf7+ Kh8 35. Qf6+ Kh7 36. Rb7+) 32. Rb1 $2 {[%emt 0:00:05]} (32. Qxc5 Rc8 33. Qe3) 32... Qc3 $2 {[%emt 0:00:10]} (32... Qxb1 $2 33. Qxf6+ Kh7 34. Rxe8 Rxe8 35. Qxf7+ Kh8 36. Qxe8+ Kg7 37. Qd7+ Kf6 38. Qd6+ (38. Qxa7 Qb4 $18) 38... Kg7 39. Qd7+ (39. Qxc5 Qxa2 40. Qe5+ Kf7 $16) 39... Kg8 40. Qd5+ (40. Qxa7 c4 $18) 40... Kg7 41. Qe5+ (41. Qxc5 Qxa2 42. f4 Qf7 $16) 41... Kg8 42. Qe6+ (42. Qxc5 Qxa2 43. Qc8+ Kh7 $16) 42... Kg7 43. Qe5+ Kf7 44. Qd5+ (44. Qxc5 Qxa2 45. Qh5+ Kg7 $16) 44... Kg7 45. Qd7+ $18 (45. Qxc5 Qxa2 46. f4 Qf7 $16)) ({Black should try} 32... Be5+ $19 33. Rxe5 Qxe5+ 34. Qxe5+ Rxe5) 33. Rc1 $2 {[%emt 0:00:04][%mdl 8192]} Be5+ {[%emt 0:00:24] Black is clearly winning.} (33... Qxc1 $2 34. Qxf6+ Kh7 35. Rxe8 Rxe8 36. Qxf7+ Kh8 37. Qxe8+ Kg7 38. Qe5+ Kf7 39. Kg3 $16) 34. f4 {[%emt 0:00:03]} Qxc1 {[%emt 0:00:06]} 35. fxe5 {[%emt 0:00:04]} Re6 {[%emt 0:00:13]} 36. Rg4 {[%emt 0:00:03]} Qe3 {[%emt 0:00:09] [#] ...Rg8 would be deadly.} 37. Re4 {[%emt 0:00:05]} Qc3 {[%emt 0:00:16]} 38. Qf3 {[%emt 0:00:04]} Qxf3 {[%emt 0:00:04] Weighted Error Value: White=1.07/Black=0.82} 0-1